bitfinex/quotes_BTCUSD_20250314
["timestamp","ask_amount","ask_price","bid_price","bid_amount"]
[1741965730486,4e-05,84960.0,84891.0,0.17194284]
[1741965730487,0.0003396,84921.0,84911.0,0.011777]
[1741965730692,0.011775,84920.0,84912.0,0.011776]
[1741965730907,0.0003396,84921.0,84914.0,0.011776]
[1741965731108,0.011775,84919.0,84915.0,0.15976]
[1741965731309,0.0003396,84921.0,84920.0,0.011775]
[1741965731512,0.235518,84919.0,84915.0,0.15976]
[1741965731730,0.247302,84916.0,84915.0,0.15976]
[1741965731984,0.011776,84915.0,84914.0,0.18124475]
[1741965732227,0.011776,84915.0,84914.0,0.16008]
[1741965732571,0.235527,84916.0,84914.0,0.16008]
[1741965732774,0.0003396,84921.0,84914.0,0.18436545]
[1741965732978,0.0003396,84921.0,84914.0,0.17258945]
[1741965733199,0.235527,84916.0,84914.0,0.18762939]
[1741965733526,0.011776,84915.0,84914.0,0.17258945]
[1741965733732,0.011776,84915.0,84914.0,0.00612384]
[1741965733930,0.42364825,84915.0,84914.0,0.01112384]
[1741965734130,0.42364825,84915.0,84914.0,0.00012384]
[1741965734131,0.44064889,84915.0,84914.0,0.00012384]
[1741965734580,0.422176,84915.0,84914.0,0.01212384]
[1741965735318,0.0003396,84921.0,84914.0,0.01212384]
[1741965735525,0.247305,84915.0,84914.0,0.01212384]
[1741965735673,0.657705,84915.0,84914.0,0.01212384]
[1741965735881,0.657705,84915.0,84914.0,0.00012384]
[1741965736086,0.657705,84915.0,84914.0,0.00912384]
[1741965736632,0.657705,84915.0,84914.0,0.00012384]
[1741965737072,0.657705,84915.0,84914.0,0.00512384]
[1741965737277,0.011776,84918.0,84914.0,0.00512384]
[1741965737278,0.0003396,84921.0,84920.0,0.235515]
[1741965737449,0.2476286,84921.0,84915.0,0.01454085]
[1741965737591,0.011775,84920.0,84915.0,0.01454085]
[1741965737795,0.0003396,84921.0,84919.0,0.235517]
[1741965738021,0.2358526,84921.0,84915.0,0.01454085]
[1741965738349,0.0003396,84921.0,84919.0,0.235518]
[1741965738706,0.0003396,84921.0,84917.0,0.235523]
[1741965738911,0.2358536,84921.0,84917.0,0.235522]
[1741965739095,0.0003396,84921.0,84917.0,0.235522]
[1741965739292,0.0003396,84921.0,84918.0,0.23552]
[1741965739492,0.0003396,84921.0,84918.0,0.235519]
[1741965739896,0.2473,84918.0,84917.0,0.004]
[1741965740101,0.0003396,84921.0,84917.0,0.004]
[1741965740338,0.235516,84920.0,84917.0,0.239523]
[1741965740546,0.2358556,84921.0,84914.0,0.00012384]
[1741965740753,0.2358556,84921.0,84914.0,8.4e-07]
[1741965740754,0.247305,84915.0,84914.0,8.4e-07]
[1741965740927,0.657705,84915.0,84914.0,8.4e-07]
[1741965741126,0.67617939,84915.0,84914.0,8.4e-07]
[1741965742070,0.01847439,84915.0,84914.0,0.24730884]
[1741965742368,0.01847439,84915.0,84914.0,8.4e-07]
[1741965742369,0.03025039,84915.0,84914.0,8.4e-07]
[1741965742725,0.01847439,84915.0,84914.0,8.4e-07]
[1741965742914,0.01847439,84915.0,84914.0,0.00200084]
[1741965743113,0.03025039,84915.0,84914.0,0.00200084]
[1741965743318,0.235526,84916.0,84914.0,0.00500084]
[1741965743517,0.0121158,84915.0,84914.0,0.00900084]
[1741965744213,0.0121158,84915.0,84914.0,0.00400084]
[1741965744419,0.0135881,84915.0,84914.0,0.00400084]
[1741965744905,0.0121158,84915.0,84914.0,0.00400084]
[1741965745554,0.0121158,84915.0,84914.0,8.4e-07]
[1741965745743,0.0003398,84915.0,84914.0,0.00400084]
[1741965746082,0.0121158,84915.0,84914.0,8.4e-07]
[1741965746310,0.24911701,84915.0,84914.0,0.00700084]
[1741965746506,0.2476448,84915.0,84914.0,0.00700084]
[1741965746681,0.2476448,84915.0,84914.0,8.4e-07]
[1741965746924,0.2476448,84915.0,84914.0,0.00300084]
[1741965747110,0.2476448,84915.0,84914.0,0.00800084]
[1741965747307,0.2476448,84915.0,84914.0,0.00500084]
[1741965747606,0.2476448,84915.0,84914.0,8.4e-07]
[1741965747988,0.2476448,84915.0,84914.0,0.00300084]
[1741965748634,0.2476448,84915.0,84914.0,0.00700084]
[1741965749046,0.2476448,84915.0,84914.0,0.00300084]
[1741965749273,0.2476448,84915.0,84914.0,0.00200084]
[1741965750167,0.0003398,84915.0,84914.0,0.00200084]
[1741965750375,0.0003398,84915.0,84914.0,0.23753284]
[1741965750586,0.2358688,84915.0,84914.0,0.00200084]
[1741965750820,0.2476448,84915.0,84914.0,0.00200084]
[1741965751002,0.0003398,84915.0,84914.0,0.23753284]
[1741965751346,0.0003398,84915.0,84914.0,0.26384969]
[1741965751548,0.0003398,84915.0,84914.0,0.23753284]
[1741965751751,0.2476448,84915.0,84914.0,0.00200084]
[1741965752560,0.2476448,84915.0,84914.0,8.4e-07]
[1741965752760,0.247346,84901.0,84900.0,0.02]
[1741965753074,0.247326,84908.0,84900.0,0.25557]
[1741965753268,0.235556,84906.0,84903.0,0.235562]
[1741965753469,0.011777,84910.0,84905.0,0.235557]
[1741965753783,0.011777,84910.0,84900.0,0.02]
[1741965753784,0.64639563,84915.0,84914.0,0.002]
[1741965754103,0.00046463,84915.0,84914.0,0.237532]
[1741965754307,0.011777,84908.0,84900.0,0.02]
[1741965754662,0.011776,84912.0,84905.0,0.004]
[1741965754853,0.235554,84906.0,84905.0,0.004]
[1741965755061,0.247331,84906.0,84905.0,0.004]
[1741965755343,0.235553,84907.0,84905.0,0.004]
[1741965755492,0.011776,84912.0,84905.0,0.004]
[1741965755716,0.235549,84908.0,84905.0,0.004]
[1741965755924,0.011778,84904.0,84900.0,0.024]
[1741965756131,0.247346,84901.0,84900.0,0.024]
[1741965756493,0.011777,84908.0,84900.0,0.024]
[1741965756494,0.011777,84911.0,84900.0,0.029]
[1741965756765,0.235565,84904.0,84900.0,1.524]
[1741965756927,0.011778,84904.0,84900.0,1.759571]
[1741965757128,0.247328,84907.0,84903.0,0.235562]
[1741965757322,0.247328,84907.0,84901.0,0.235568]
[1741965757546,0.235558,84905.0,84900.0,1.526]
[1741965757869,0.23556,84904.0,84900.0,1.761571]
[1741965758041,0.011777,84905.0,84900.0,1.526]
[1741965758401,0.23556,84904.0,84900.0,1.526]
[1741965758602,0.235543,84910.0,84900.0,1.526]
[1741965758802,0.235526,84916.0,84910.0,0.235541]
[1741965758947,0.235526,84916.0,84911.0,0.23554]
[1741965759156,0.422175,84920.0,84914.0,0.235532]
[1741965759157,0.4104,84920.0,84914.0,0.235532]
[1741965759355,0.4104,84920.0,84914.0,0.26184885]
[1741965759586,0.4104,84920.0,84914.0,0.42100885]
[1741965759998,0.4104,84920.0,84914.0,1.92100885]
[1741965760198,0.0003796,84922.0,84914.0,1.92100885]
[1741965760199,6.3e-07,84915.0,84914.0,3.08838388]
[1741965760395,0.0003796,84922.0,84921.0,0.56182885]
[1741965760396,0.0002552,84922.0,84921.0,0.56182885]
[1741965760605,2e-07,84922.0,84921.0,0.68140388]
[1741965760779,0.235424,84953.0,84948.0,0.235436]
[1741965761080,0.00041634,84953.0,84951.0,0.235429]
[1741965761338,0.00041634,84953.0,84951.0,0.2474759]
[1741965761647,0.00041634,84953.0,84952.0,0.011771]
[1741965762063,0.00041634,84953.0,84952.0,0.01454085]
[1741965762263,0.00041634,84953.0,84951.0,0.2592469]
[1741965762441,0.00041634,84953.0,84952.0,0.02631185]
[1741965762940,0.00041634,84953.0,84952.0,0.44588688]
[1741965763345,4e-05,84960.0,84959.0,0.01177]
[1741965763523,4e-05,84960.0,84959.0,0.68129288]
[1741965763524,0.0001648,84960.0,84959.0,0.68129288]
[1741965764721,0.0008,84989.0,84985.0,0.011766]
[1741965764903,0.0008,84989.0,84988.0,0.56163385]
[1741965765107,0.00092473,84989.0,84988.0,0.76140888]
[1741965765331,0.00092473,84989.0,84988.0,0.64183385]
[1741965765534,0.00092473,84989.0,84988.0,0.56163385]
[1741965766251,0.00092473,84989.0,84988.0,0.68120888]
[1741965766390,0.00092473,84989.0,84988.0,0.68720888]
[1741965766791,0.00092473,84989.0,84988.0,2.18720888]
[1741965766988,0.00092473,84989.0,84988.0,2.34516888]
[1741965767509,0.00092473,84989.0,84988.0,2.35116888]
[1741965767761,7.3e-07,84989.0,84988.0,2.35116888]
[1741965768559,7.3e-07,84989.0,84988.0,2.34516888]
[1741965768755,7.3e-07,84989.0,84988.0,2.35116888]
[1741965768961,7.3e-07,84989.0,84988.0,0.85983049]
[1741965769162,7.3e-07,84989.0,84988.0,0.85383049]
[1741965769339,7.3e-07,84989.0,84988.0,0.25892946]
[1741965769539,7.3e-07,84989.0,84988.0,0.01506161]
[1741965769743,0.01176673,84989.0,84988.0,0.1634]
[1741965769947,7.3e-07,84989.0,84988.0,0.1694]
[1741965770121,0.00033993,84989.0,84988.0,0.1694]
[1741965770527,0.01210593,84989.0,84988.0,0.1694]
[1741965770729,0.00033993,84989.0,84988.0,0.16821232]
[1741965770937,0.00033993,84989.0,84988.0,0.16221232]
[1741965771495,0.00033993,84989.0,84988.0,0.00981232]
[1741965771691,0.00033993,84989.0,84988.0,0.005]
[1741965771692,0.01210593,84989.0,84988.0,0.005]
[1741965772045,0.01210593,84989.0,84988.0,0.011]
[1741965772459,0.00033993,84989.0,84988.0,0.005]
[1741965773015,0.01210593,84989.0,84988.0,0.011]
[1741965773671,0.01357706,84989.0,84988.0,0.011]
[1741965774230,0.01210593,84989.0,84988.0,0.011]
[1741965774838,0.01210593,84989.0,84988.0,0.006]
[1741965775037,0.01214593,84989.0,84988.0,0.006]
[1741965775906,0.235327,84988.0,84984.0,0.235337]
[1741965776095,0.24747193,84989.0,84981.0,0.15696]
[1741965776096,0.00037993,84989.0,84988.0,0.002]
[1741965776632,0.00037993,84989.0,84988.0,1.5]
[1741965776836,0.00037993,84989.0,84988.0,1.513766]
[1741965777046,0.00037993,84989.0,84988.0,1.95088188]
[1741965777260,0.0003394,85001.0,84999.0,0.24706]
[1741965777469,0.0003394,85001.0,84999.0,0.41824085]
[1741965777889,0.0003394,85001.0,84999.0,0.71824085]
[1741965778096,0.0003394,85001.0,84999.0,0.83781588]
[1741965778298,6e-07,85017.0,85016.0,0.56155185]
[1741965778557,0.0001253,85017.0,85016.0,1.58476688]
[1741965779770,0.0001253,85017.0,85016.0,1.59076688]
[1741965779940,0.0001253,85017.0,85016.0,1.61404895]
[1741965780140,3e-07,85017.0,85016.0,1.61404895]
[1741965780689,0.0003392,85045.0,85044.0,0.011758]
[1741965781018,0.00075479,85045.0,85044.0,0.41779085]
[1741965782004,0.00075479,85045.0,85044.0,0.43478779]
[1741965782392,0.00075479,85045.0,85044.0,0.01699694]
[1741965782593,0.00075479,85045.0,85044.0,0.40828894]
[1741965782795,0.00075479,85045.0,85044.0,0.17311694]
[1741965783196,0.00075479,85045.0,85044.0,0.17911694]
[1741965783748,0.00075479,85045.0,85044.0,0.16712]
[1741965783749,0.01251279,85045.0,85044.0,0.16712]
[1741965784168,0.01251279,85045.0,85044.0,0.16212]
[1741965784470,0.00075479,85045.0,85044.0,0.1596692]
[1741965784620,0.00075479,85045.0,85044.0,0.15235162]
[1741965785009,0.00075479,85045.0,85044.0,0.15835162]
[1741965785212,0.00075479,85045.0,85044.0,0.03229885]
[1741965785526,0.00075479,85045.0,85044.0,0.18805885]
[1741965785873,0.01251279,85045.0,85044.0,0.012]
[1741965786107,0.01251279,85045.0,85044.0,0.16788]
[1741965786266,0.01251279,85045.0,85044.0,0.16188]
[1741965786666,0.01251279,85045.0,85044.0,0.16788]
[1741965786875,0.01251279,85045.0,85044.0,0.012]
[1741965787057,0.01251279,85045.0,85044.0,0.006]
[1741965787251,0.24693,85044.0,85038.0,0.2472891]
[1741965787591,0.011758,85043.0,85038.0,0.2472891]
[1741965787945,0.235179,85042.0,85038.0,0.2472891]
[1741965788377,0.00387426,85050.0,85048.0,0.23516]
[1741965790019,0.00387426,85050.0,85017.0,0.05]
[1741965790219,0.011758,85047.0,85038.0,0.7688611]
[1741965790398,0.235166,85046.0,85038.0,0.9940481]
[1741965790602,0.00387426,85050.0,85038.0,0.7588611]
[1741965790805,0.00387426,85050.0,85048.0,0.006]
[1741965791041,0.26535707,85049.0,85048.0,0.004]
[1741965791342,0.01844207,85049.0,85048.0,0.004]
[1741965791559,0.00387426,85050.0,85049.0,0.246915]
[1741965791699,0.00387426,85050.0,85049.0,0.26145585]
[1741965792723,0.00387426,85050.0,85049.0,0.41681585]
[1741965792885,0.00387426,85050.0,85049.0,0.440079]
[1741965793752,0.00387426,85050.0,85049.0,0.396398]
[1741965794488,0.00387426,85050.0,85049.0,0.16124]
[1741965794701,0.25078626,85050.0,85049.0,0.006]
[1741965795046,0.25078626,85050.0,85049.0,0.012]
[1741965795251,0.00387426,85050.0,85049.0,0.012]
[1741965795456,0.00387426,85050.0,85049.0,0.258915]
[1741965795821,0.00387426,85050.0,85049.0,0.246915]
[1741965796027,0.00387426,85050.0,85049.0,0.41059148]
[1741965796585,0.00387426,85050.0,85049.0,1.7704756]
[1741965796953,0.00387426,85050.0,85049.0,1.7764756]
[1741965797171,0.00387426,85050.0,85049.0,1.7814756]
[1741965797380,0.00387426,85050.0,85049.0,1.7587186]
[1741965797589,0.00387426,85050.0,85049.0,1.5]
[1741965797800,0.00387426,85050.0,85049.0,0.241158]
[1741965797994,0.00387426,85050.0,85049.0,0.006]
[1741965798201,0.25078626,85050.0,85049.0,0.006]
[1741965798402,0.00387426,85050.0,85049.0,0.006]
[1741965798606,0.00387426,85050.0,85048.0,0.39032]
[1741965798806,0.00387426,85050.0,85049.0,0.006]
[1741965799004,0.00387426,85050.0,85049.0,0.246158]
[1741965799206,0.00387426,85050.0,85049.0,0.257915]
[1741965799475,0.00387426,85050.0,85049.0,0.251915]
[1741965799624,0.00387426,85050.0,85049.0,0.37149003]
[1741965800033,0.00387426,85050.0,85049.0,0.251915]
[1741965800368,0.00387426,85050.0,85049.0,0.37249003]
[1741965800721,0.00387426,85050.0,85049.0,0.4016162]
[1741965800969,0.00387426,85050.0,85049.0,0.27704117]
[1741965801220,0.00387426,85050.0,85049.0,0.3966162]
[1741965801452,0.00387426,85050.0,85049.0,0.4026162]
[1741965801921,0.00387426,85050.0,85049.0,0.27704117]
[1741965802364,0.00387426,85050.0,85049.0,0.28304117]
[1741965803264,0.00387426,85050.0,85049.0,0.43808117]
[1741965805570,0.00387426,85050.0,85049.0,0.5576562]
[1741965806278,0.00387426,85050.0,85049.0,0.43808117]
[1741965806723,0.00387426,85050.0,85049.0,1.93808117]
[1741965806942,0.00387426,85050.0,85049.0,1.93841977]
[1741965807850,0.00387426,85050.0,85049.0,2.0579948]
[1741965808323,0.00766582,85069.0,85068.0,0.011755]
[1741965808568,0.00766582,85069.0,85068.0,0.401261]
[1741965808812,0.00766582,85069.0,85068.0,0.389506]
[1741965809265,0.00766582,85069.0,85068.0,1.889506]
[1741965809714,0.00766582,85069.0,85068.0,1.894506]
[1741965809951,0.00766582,85069.0,85068.0,1.906261]
[1741965810200,0.00766582,85069.0,85068.0,1.894506]
[1741965810435,0.01288734,85069.0,85068.0,1.898506]
[1741965810688,0.01278857,85069.0,85068.0,1.898506]
[1741965811162,0.01278857,85069.0,85068.0,1.910261]
[1741965811848,0.00756705,85069.0,85068.0,1.910261]
[1741965812096,0.00756705,85069.0,85068.0,1.739106]
[1741965812368,0.00756705,85069.0,85068.0,1.909661]
[1741965812604,4e-08,85076.0,85075.0,0.235086]
[1741965813036,0.00012462,85076.0,85075.0,0.235086]
[1741965813487,0.00012462,85076.0,85075.0,0.24684]
[1741965813944,0.00012462,85076.0,85075.0,0.36641503]
[1741965814350,0.00012462,85076.0,85075.0,0.37241503]
[1741965814757,0.00012462,85076.0,85075.0,0.36641503]
[1741965814874,0.00012462,85076.0,85075.0,0.53225503]
[1741965815082,0.00012462,85076.0,85075.0,0.54464092]
[1741965815285,0.00012462,85076.0,85075.0,0.54718177]
[1741965815757,0.00012462,85076.0,85075.0,0.26522589]
[1741965815947,0.00012462,85076.0,85075.0,0.40719189]
[1741965816174,0.235059,85086.0,85075.0,0.17210589]
[1741965816317,0.01787115,85089.0,85075.0,0.16610589]
[1741965816541,0.01787115,85089.0,85085.0,0.235058]
[1741965817097,0.01787115,85089.0,85088.0,0.23505]
[1741965817895,0.01787115,85089.0,85083.0,0.235063]
[1741965818075,0.01787115,85089.0,85088.0,0.23505]
[1741965818451,0.01787115,85089.0,85088.0,0.23905]
[1741965818687,0.01787115,85089.0,85088.0,0.004]
[1741965818894,0.26467115,85089.0,85088.0,0.004]
[1741965820273,0.26467115,85089.0,85088.0,0.007]
[1741965821993,0.67507115,85089.0,85088.0,0.007]
[1741965822414,0.68001869,85089.0,85088.0,0.007]
[1741965822615,0.322937,85076.0,85075.0,0.0003386]
[1741965823405,0.34137575,85076.0,85075.0,0.0003386]
[1741965823601,0.38747575,85076.0,85075.0,0.0003386]
[1741965823828,0.79787575,85076.0,85075.0,6e-07]
[1741965824057,0.79787575,85076.0,85037.0,0.01204428]
[1741965824058,0.246912,85050.0,85037.0,0.01204428]
[1741965824255,0.786212,85050.0,85049.0,0.00046318]
[1741965824993,0.011757,85050.0,85049.0,0.00046318]
[1741965825145,0.24838198,85050.0,85049.0,0.00046318]
[1741965825346,0.246912,85050.0,85049.0,0.00046318]
[1741965825735,0.25185954,85050.0,85049.0,0.00046318]
[1741965826186,0.25185954,85050.0,85049.0,0.23562118]
[1741965826187,0.00494754,85050.0,85049.0,0.23562118]
[1741965826378,0.00494754,85050.0,85049.0,0.24737818]
[1741965826620,0.00494754,85050.0,85049.0,1.75979379]
[1741965827112,0.00494754,85050.0,85049.0,1.76179379]
[1741965827540,0.011756,85061.0,85055.0,0.23514]
[1741965827744,0.235124,85062.0,85055.0,0.23514]
[1741965827989,0.011755,85066.0,85049.0,1.66935879]
[1741965827990,0.01843862,85070.0,85050.0,0.2521523]
[1741965828194,0.0014697,85069.0,85049.0,0.18135879]
[1741965828309,0.0014697,85069.0,85063.0,0.235117]
[1741965828310,0.24686,85069.0,85063.0,0.235117]
[1741965828514,0.235113,85066.0,85064.0,1.5]
[1741965828720,0.011755,85065.0,85064.0,1.5]
[1741965828921,0.01843862,85070.0,85064.0,1.5]
[1741965829163,0.01843862,85070.0,85068.0,0.235104]
[1741965829758,0.01843862,85070.0,85069.0,0.15632]
[1741965830280,0.01843862,85070.0,85069.0,0.168075]
[1741965830519,0.4104,85079.0,85071.0,0.235092]
[1741965830686,0.4104,85079.0,85077.0,0.235079]
[1741965831142,0.01843631,85079.0,85077.0,0.235079]
[1741965831351,0.01843631,85079.0,85078.0,0.15596]
[1741965832681,0.01843631,85079.0,85078.0,0.15796]
[1741965833375,0.01843631,85079.0,85078.0,0.393038]
[1741965833705,0.01860561,85079.0,85078.0,0.393038]
[1741965834142,0.01860561,85079.0,85078.0,0.396038]
[1741965834955,4.65e-05,85090.0,85078.0,0.396038]
[1741965835209,0.235046,85090.0,85086.0,0.235054]
[1741965835473,0.31620544,85102.0,85093.0,0.235035]
[1741965835474,0.235026,85097.0,85093.0,0.235035]
[1741965835580,0.01175,85101.0,85096.0,0.235027]
[1741965835784,0.0005,85101.0,85097.0,0.235023]
[1741965835984,0.0005,85101.0,85084.0,0.011753]
[1741965836189,0.235515,85101.0,85086.0,0.011752]
[1741965836395,0.01225,85101.0,85082.0,0.011753]
[1741965836595,0.235024,85098.0,85093.0,0.235036]
[1741965836827,0.011751,85095.0,85090.0,0.235044]
[1741965837025,0.011751,85095.0,85088.0,1.5]
[1741965837226,0.001,85090.0,85089.0,0.235046]
[1741965837640,0.24678,85096.0,85089.0,0.235046]
[1741965837908,0.011752,85087.0,85081.0,0.235069]
[1741965838133,0.235064,85083.0,85078.0,0.235078]
[1741965838354,0.011753,85084.0,85078.0,0.389798]
[1741965838555,0.235064,85083.0,85078.0,0.389798]
[1741965838766,0.235064,85083.0,85075.0,0.0003386]
[1741965838767,0.246837,85077.0,85075.0,0.1549386]
[1741965839150,0.011754,85076.0,85075.0,0.0003386]
[1741965839549,0.246831,85078.0,85075.0,0.0003386]
[1741965839550,0.235079,85078.0,85075.0,0.0003386]
[1741965839785,0.011754,85076.0,85075.0,0.0003386]
[1741965840201,0.01322349,85076.0,85075.0,0.0003386]
[1741965840756,0.011754,85076.0,85075.0,0.0003386]
[1741965840962,0.01322357,85076.0,85075.0,0.0003386]
[1741965841170,0.246837,85076.0,85075.0,0.0033386]
[1741965841598,0.00535072,85076.0,85075.0,0.2384246]
[1741965841836,0.00535072,85076.0,85075.0,0.0033386]
[1741965841980,0.00635072,85076.0,85075.0,0.2354246]
[1741965842966,0.00635072,85076.0,85075.0,0.2374246]
[1741965843188,0.00635072,85076.0,85075.0,0.0023386]
[1741965843392,0.25365707,85076.0,85075.0,0.0023386]
[1741965843599,0.011753,85081.0,85075.0,0.0023386]
[1741965843600,0.2535091,85082.0,85075.0,0.0023386]
[1741965843803,0.235078,85078.0,85075.0,0.0053386]
[1741965844017,0.011753,85081.0,85075.0,0.0053386]
[1741965844219,0.23507,85081.0,85075.0,0.0053386]
[1741965844562,0.0184401,85082.0,85081.0,0.23507]
[1741965845664,0.0126566,85103.0,85100.0,0.246767]
[1741965845947,0.0189344,85101.0,85100.0,0.235017]
[1741965846142,0.0189344,85101.0,85099.0,0.388779]
[1741965846501,0.2539494,85101.0,85099.0,1.65376]
[1741965846706,0.0189344,85101.0,85100.0,0.235017]
[1741965847163,0.0189344,85101.0,85099.0,1.5]
[1741965847164,0.2539494,85101.0,85099.0,1.5]
[1741965847370,0.0189344,85101.0,85099.0,1.5]
[1741965847572,0.01175,85100.0,85099.0,0.003]
[1741965847749,0.0189344,85101.0,85099.0,0.003]
[1741965848104,0.0189344,85101.0,85099.0,0.238018]
[1741965848308,0.0189344,85101.0,85100.0,0.003]
[1741965848483,0.0189344,85101.0,85100.0,0.15352]
[1741965850068,0.0189344,85101.0,85100.0,0.15652]
[1741965850302,0.0189344,85101.0,85100.0,0.003]
[1741965850832,0.0189344,85101.0,85100.0,0.006]
[1741965850971,0.0306844,85101.0,85100.0,0.006]
[1741965851598,0.0189344,85101.0,85100.0,0.241017]
[1741965852129,0.0189344,85101.0,85100.0,0.394457]
[1741965853736,0.0005,85101.0,85100.0,0.406207]
[1741965854335,0.0005,85101.0,85100.0,0.484407]
[1741965854510,0.0005,85101.0,85100.0,0.33981921]
[1741965854757,0.0005,85101.0,85100.0,0.48985921]
[1741965856923,0.07992165,85105.0,85104.0,1.87937188]
[1741965857084,0.07992165,85105.0,85104.0,1.87887188]
[1741965857284,0.07992165,85105.0,85104.0,1.86383103]
[1741965857488,0.07992165,85105.0,85104.0,1.86983103]
[1741965857777,0.07992165,85105.0,85104.0,1.86933103]
[1741965857923,0.07992165,85105.0,85104.0,0.402056]
[1741965858467,0.07992165,85105.0,85104.0,0.407556]
[1741965858668,0.07992165,85105.0,85104.0,0.407056]
[1741965859011,0.07992165,85105.0,85104.0,0.52063103]
[1741965859211,0.07992165,85105.0,85104.0,0.53517188]
[1741965859446,0.07992165,85105.0,85104.0,0.53467188]
[1741965859752,0.07992165,85105.0,85104.0,0.53417188]
[1741965859969,0.07992165,85105.0,85104.0,0.399556]
[1741965860098,0.07992165,85105.0,85104.0,0.405556]
[1741965860298,0.07992165,85105.0,85104.0,0.387026]
[1741965860505,0.07992165,85105.0,85104.0,0.392526]
[1741965860915,0.07992165,85105.0,85104.0,0.403776]
[1741965861200,0.07992165,85105.0,85104.0,0.397776]
[1741965861473,0.07992165,85105.0,85104.0,0.397276]
[1741965861692,0.07992165,85105.0,85104.0,0.396776]
[1741965861921,0.0798229,85105.0,85104.0,0.396776]
[1741965862125,0.0798229,85105.0,85104.0,0.396076]
[1741965862552,0.0798229,85105.0,85104.0,0.402076]
[1741965862756,0.0798229,85105.0,85104.0,0.401576]
[1741965863038,0.0798229,85105.0,85104.0,0.383326]
[1741965863241,0.0798229,85105.0,85104.0,0.389086]
[1741965867381,0.0798229,85105.0,85104.0,2.623606]
[1741965867584,0.0798229,85105.0,85104.0,2.629606]
[1741965867810,0.0798229,85105.0,85104.0,2.622866]
[1741965868019,0.0798229,85105.0,85104.0,2.622366]
[1741965868227,0.0798229,85105.0,85104.0,2.627866]
[1741965868582,0.0798229,85105.0,85104.0,2.627366]
[1741965868810,0.0798229,85105.0,85104.0,2.2575]
[1741965869093,0.0798229,85105.0,85104.0,1.131826]
[1741965869328,0.0798229,85105.0,85104.0,1.142826]
[1741965869578,0.0799921,85105.0,85104.0,2.642326]
[1741965869780,0.0799921,85105.0,85104.0,2.635826]
[1741965869967,0.0799921,85105.0,85104.0,2.635326]
[1741965870302,0.0799921,85105.0,85104.0,2.640826]
[1741965870707,0.0799921,85105.0,85104.0,2.640326]
[1741965870908,0.0799921,85105.0,85104.0,2.639466]
[1741965871084,0.0799921,85105.0,85104.0,2.638966]
[1741965871487,0.0799921,85105.0,85104.0,2.650216]
[1741965871635,0.0799921,85105.0,85104.0,2.638466]
[1741965871832,0.0799921,85105.0,85104.0,2.637966]
[1741965872044,0.0799921,85105.0,85104.0,2.2515]
[1741965872045,0.3149951,85105.0,85104.0,2.2515]
[1741965872247,0.3149951,85105.0,85104.0,2.40172]
[1741965872757,0.3267451,85105.0,85104.0,2.2505]
[1741965872962,0.3267451,85105.0,85104.0,1.511]
[1741965873163,0.3267451,85105.0,85104.0,0.0105]
[1741965873536,0.3267451,85105.0,85104.0,0.004]
[1741965873738,0.3267451,85105.0,85104.0,0.0085]
[1741965873963,0.33897942,85105.0,85104.0,0.0085]
[1741965874212,0.33897942,85105.0,85104.0,0.008]
[1741965874421,0.247264,85101.0,85100.0,0.0003384]
[1741965874628,0.69566944,85101.0,85100.0,4e-07]
[1741965874831,0.74566944,85101.0,85100.0,4e-07]
[1741965875007,0.246837,85076.0,85075.0,0.0003386]
[1741965875338,0.246837,85076.0,85075.0,6e-07]
[1741965875339,0.68904244,85076.0,85075.0,6e-07]
[1741965875761,0.81281318,85076.0,85075.0,6e-07]
[1741965875968,0.81281318,85076.0,85049.0,0.0003386]
[1741965875969,0.246886,85059.0,85049.0,0.0003386]
[1741965876143,0.246912,85050.0,85049.0,0.0003386]
[1741965876285,0.56311744,85050.0,85049.0,0.0003386]
[1741965876489,0.56311744,85050.0,85049.0,0.00012518]
[1741965876937,0.60072437,85050.0,85049.0,0.00012518]
[1741965877261,0.56311744,85050.0,85049.0,0.00012518]
[1741965878007,0.56311744,85050.0,85049.0,0.00112518]
[1741965878008,0.246912,85050.0,85049.0,0.00112518]
[1741965878211,0.01398247,85050.0,85049.0,0.00212518]
[1741965878417,0.02573947,85050.0,85049.0,0.00212518]
[1741965878619,0.02720935,85050.0,85049.0,0.00212518]
[1741965878995,0.02573947,85050.0,85049.0,0.00212518]
[1741965879136,0.01398247,85050.0,85049.0,0.00212518]
[1741965879784,0.02573947,85050.0,85049.0,0.00212518]
[1741965880433,0.02720941,85050.0,85049.0,0.00212518]
[1741965880594,0.02573947,85050.0,85049.0,0.00212518]
[1741965880755,0.01322705,85050.0,85049.0,0.00212518]
[1741965882218,0.011757,85050.0,85049.0,0.00112518]
[1741965882451,0.0132271,85050.0,85049.0,0.00112518]
[1741965882584,0.0132271,85050.0,85049.0,0.00093518]
[1741965882791,0.32796244,85050.0,85049.0,0.00093518]
[1741965883360,0.3464074,85050.0,85049.0,0.00093518]
[1741965883549,0.3464074,85050.0,85049.0,0.00193518]
[1741965886779,0.3464074,85050.0,85049.0,1.8e-07]
[1741965886982,0.4507074,85050.0,85049.0,1.8e-07]
[1741965887205,0.4819074,85050.0,85049.0,1.8e-07]
[1741965887402,0.2956168,85050.0,85049.0,1.8e-07]
[1741965887809,0.24693,85044.0,85015.0,0.23525]
[1741965888027,0.24693,85044.0,85014.0,0.0003392]
[1741965888241,0.65733,85044.0,85043.0,8e-07]
[1741965888640,0.81149,85044.0,85043.0,8e-07]
[1741965889211,0.85209693,85044.0,85043.0,8e-07]
[1741965889407,1.20209693,85044.0,85043.0,8e-07]
[1741965889608,0.24702,85013.0,85012.0,1.49634]
[1741965889821,0.235307,84995.0,84991.0,0.235318]
[1741965890023,0.011764,85001.0,84998.0,0.235299]
[1741965890225,0.2353,84998.0,84994.0,0.235308]
[1741965890432,0.011764,85001.0,84996.0,0.235305]
[1741965890638,0.235297,84999.0,84995.0,0.235307]
[1741965890852,0.247059,85000.0,84995.0,0.235307]
[1741965891057,0.01845234,85003.0,84995.0,0.235307]
[1741965891461,0.2353,84998.0,84995.0,0.235307]
[1741965892036,0.247079,84993.0,84991.0,0.00041559]
[1741965892176,0.011765,84992.0,84991.0,0.00041559]
[1741965892786,0.03169308,84992.0,84991.0,0.00041559]
[1741965893406,0.011769,84966.0,84962.0,0.14892]
[1741965893782,0.011769,84963.0,84962.0,0.1490446]
[1741965893982,0.011767,84977.0,84962.0,0.1490446]
[1741965894187,0.235349,84980.0,84974.0,0.235364]